bitfinex-derivatives/quotes_BTCF0:USTF0_20250426
["timestamp","ask_amount","ask_price","bid_price","bid_amount"]
[1745638109831,0.2126474,94896.0,94895.0,0.2116496]
[1745638110343,0.4124474,94896.0,94895.0,0.2116496]
[1745638112639,0.7732474,94896.0,94895.0,0.19319839]
[1745638114134,0.6052474,94896.0,94895.0,0.19319839]
[1745638115640,0.6383474,94896.0,94895.0,0.19319839]
[1745638117335,0.2775474,94896.0,94895.0,0.19319839]
[1745638117535,0.6383474,94896.0,94895.0,0.19319839]
[1745638122845,0.2106629,94889.0,94888.0,0.2106632]
[1745638123641,0.2732629,94889.0,94888.0,0.2106632]
[1745638123841,0.6340629,94889.0,94888.0,0.1853579]
[1745638124047,0.6350629,94889.0,94888.0,0.1853579]
[1745638124347,0.64885654,94889.0,94888.0,0.1853579]
[1745638124646,0.64885654,94889.0,94888.0,0.16690612]
[1745638125645,0.64985654,94889.0,94888.0,0.16690612]
[1745638126356,0.0526683,94885.0,94870.0,0.08155593]
[1745638126544,0.5714874,94878.0,94877.0,0.19389874]
[1745638127146,0.5714874,94878.0,94796.0,1.12396]
[1745638127147,0.2107147,94868.0,94867.0,0.2107021]
[1745638127349,0.0526794,94865.0,94863.0,0.2107187]
[1745638127556,0.2425231,94864.0,94863.0,0.2107207]
[1745638127748,0.2737231,94864.0,94863.0,0.2107207]
[1745638129241,0.064,94864.0,94863.0,0.2107207]
[1745638129946,0.2747184,94864.0,94863.0,0.2107207]
[1745638130145,0.210721,94863.0,94860.0,0.0963]
[1745638130341,0.210721,94863.0,94862.0,0.0327]
[1745638131645,0.211721,94863.0,94862.0,0.0327]
[1745638132445,0.212721,94863.0,94862.0,0.0327]
[1745638133248,0.212721,94863.0,94862.0,0.0142435]
[1745638133450,0.2107251,94861.0,94860.0,0.0324]
[1745638134039,0.5715251,94861.0,94860.0,0.00708818]
[1745638134242,0.2634219,94857.0,94856.0,0.2107357]
[1745638134447,0.2107384,94855.0,94854.0,0.0304]
[1745638135941,0.2127384,94855.0,94854.0,0.0304]
[1745638136348,0.22606288,94855.0,94854.0,0.0304]
[1745638136548,0.22706288,94855.0,94854.0,0.0617]
[1745638137654,0.22706288,94855.0,94854.0,0.0942]
[1745638140754,0.22706288,94855.0,94854.0,0.0617]
[1745638140955,0.25876288,94855.0,94854.0,0.0617]
[1745638141460,0.25876288,94855.0,94854.0,0.0313]
[1745638143549,0.2107429,94853.0,94852.0,0.3608]
[1745638143760,0.2107429,94853.0,94852.0,0.3924]
[1745638144359,0.2107429,94853.0,94852.0,0.3608]
[1745638144562,0.2107429,94853.0,94850.0,0.03318429]
[1745638144563,0.2107473,94851.0,94850.0,0.03318429]
[1745638145653,0.2117473,94851.0,94850.0,0.03265429]
[1745638145857,0.2127473,94851.0,94850.0,0.24340379]
[1745638146158,0.2117473,94851.0,94850.0,0.24340379]
[1745638146349,0.2127473,94851.0,94850.0,0.24340379]
[1745638149861,0.2445473,94851.0,94850.0,0.24340379]
[1745638150250,0.002,94851.0,94850.0,0.24340379]
[1745638150762,0.002,94851.0,94850.0,0.34883179]
[1745638157156,0.002,94851.0,94850.0,0.24340379]
[1745638161460,0.002,94851.0,94850.0,0.27390379]
[1745638163362,0.0322,94851.0,94850.0,0.27390379]
[1745638164063,0.0639,94851.0,94850.0,0.27390379]
[1745638164264,0.2746473,94851.0,94850.0,0.21180379]
[1745638164763,0.2746473,94851.0,94850.0,0.00105429]
[1745638164966,0.2746473,94851.0,94850.0,0.21180379]
[1745638166963,0.0639,94851.0,94850.0,0.21180379]
[1745638167765,0.0639,94851.0,94850.0,0.24270379]
[1745638168262,0.0639,94851.0,94850.0,0.21180379]
[1745638170865,0.2746473,94851.0,94850.0,0.21180379]
[1745638171168,0.0639,94851.0,94850.0,0.21180379]
[1745638171667,0.2746473,94851.0,94850.0,0.21180379]
[1745638177965,0.0639,94851.0,94850.0,0.21180379]
[1745638178366,0.2746473,94851.0,94850.0,0.21180379]
[1745638182073,0.0639,94851.0,94850.0,0.21180379]
[1745638182977,0.0337,94851.0,94850.0,0.21180379]
[1745638183366,0.3428588,94874.0,94873.0,0.2106985]
[1745638183567,0.0639,94874.0,94873.0,0.2106985]
[1745638183775,0.2745962,94874.0,94873.0,0.2106985]
[1745638184172,0.28798598,94874.0,94873.0,0.18538959]
[1745638184376,0.08028978,94874.0,94873.0,0.16693518]
[1745638184577,0.11078978,94874.0,94873.0,0.16693518]
[1745638191280,0.07928978,94874.0,94873.0,0.16693518]
[1745638191477,0.04688978,94874.0,94873.0,0.16693518]
[1745638192373,0.0335,94874.0,94873.0,0.16693518]
[1745638193982,0.003,94874.0,94873.0,0.16693518]
[1745638199386,0.003,94874.0,94873.0,0.52773518]
[1745638202189,0.171,94874.0,94873.0,0.52773518]
[1745638203793,0.171,94874.0,94873.0,0.50928239]
[1745638208489,0.171,94874.0,94873.0,0.14848239]
[1745638220592,0.2013,94874.0,94873.0,0.14848239]
[1745638242513,0.2013,94874.0,94873.0,0.13002875]
[1745638253218,0.0526773,94869.0,94863.0,0.0526799]
[1745638253407,0.3608,94865.0,94864.0,0.2107176]
[1745638254116,0.5288,94865.0,94864.0,0.2107176]
[1745638254313,0.5902,94865.0,94864.0,0.2107176]
[1745638254515,0.5922,94865.0,94864.0,0.2117176]
[1745638257023,0.2314,94865.0,94864.0,0.2117176]
[1745638257318,0.5922,94865.0,94864.0,0.2117176]
[1745638265023,0.8029162,94865.0,94864.0,0.2117176]
[1745638265926,0.8029162,94865.0,94864.0,0.19326066]
[1745638268124,0.5922,94865.0,94864.0,0.19326066]
[1745638269016,0.8029162,94865.0,94864.0,0.19326066]
[1745638271831,0.5922,94865.0,94864.0,0.19326066]
[1745638281727,0.2314,94865.0,94864.0,0.19326066]
[1745638282031,0.5922,94865.0,94864.0,0.19326066]
[1745638282730,0.2314,94865.0,94864.0,0.19326066]
[1745638282930,0.5922,94865.0,94864.0,0.19326066]
[1745638290728,0.5922,94865.0,94864.0,0.22646066]
[1745638295432,0.2014,94865.0,94864.0,0.22646066]
[1745638295629,0.2014,94865.0,94864.0,0.25796066]
[1745638299539,0.2014,94865.0,94864.0,0.19326066]
[1745638299729,0.4121162,94865.0,94864.0,0.001]
[1745638299928,0.2634222,94860.0,94859.0,0.210723]
[1745638300134,0.3161058,94860.0,94859.0,0.210723]
[1745638300439,0.2634222,94860.0,94859.0,0.210723]
[1745638300833,0.2107391,94860.0,94859.0,0.210723]
[1745638301132,0.3787391,94860.0,94859.0,0.210723]
[1745638301337,0.3797391,94860.0,94859.0,0.211723]
[1745638301730,0.3807391,94860.0,94859.0,0.211723]
[1745638302145,0.4111391,94860.0,94859.0,0.211723]
[1745638304142,0.2004,94860.0,94859.0,0.211723]
[1745638304534,0.2004,94860.0,94859.0,0.19326495]
[1745638307932,0.2004,94860.0,94859.0,0.16854438]
[1745638311739,0.232,94860.0,94859.0,0.16854438]
[1745638314148,0.407,94860.0,94859.0,0.16854438]
[1745638319148,0.232,94860.0,94859.0,0.16854438]
[1745638319443,0.5928,94860.0,94859.0,0.16854438]
[1745638319950,0.232,94860.0,94859.0,0.16854438]
[1745638320250,0.5928,94860.0,94859.0,0.16854438]
[1745638327848,0.624,94860.0,94859.0,0.16854438]
[1745638358159,0.8347273,94860.0,94859.0,0.16854438]
[1745638358462,0.2634411,94851.0,94850.0,0.2634288]
[1745638358758,0.571554,94851.0,94850.0,0.2634288]
[1745638358964,0.3608,94851.0,94850.0,0.2634288]
[1745638359163,0.5288,94851.0,94850.0,0.2634288]
[1745638359863,0.5946,94851.0,94850.0,0.2634288]
[1745638360852,0.8053473,94851.0,94850.0,0.2634288]
[1745638361159,0.385754,94848.0,94840.0,0.00158145]
[1745638361356,0.2107695,94844.0,94843.0,0.2107571]
[1745638362363,0.4726695,94844.0,94843.0,0.2107571]
[1745638362564,0.4736695,94844.0,94843.0,0.2107571]
[1745638362966,0.2338,94844.0,94843.0,0.2107571]
[1745638363162,0.2328,94844.0,94843.0,0.2735571]
[1745638363358,0.2015,94844.0,94843.0,0.2735571]
[1745638365264,0.2323,94844.0,94843.0,0.2735571]
[1745638367470,0.5931,94844.0,94843.0,0.2735571]
[1745638372769,0.2323,94844.0,94843.0,0.2735571]
[1745638373673,0.4430629,94844.0,94843.0,0.2107571]
[1745638374787,0.2107695,94841.0,94840.0,0.21235115]
[1745638375173,0.3787695,94841.0,94840.0,0.21235115]
[1745638375677,0.4434695,94841.0,94840.0,0.21235115]
[1745638375876,0.46263537,94841.0,94840.0,0.21235115]
[1745638376270,0.46363537,94841.0,94840.0,0.21235115]
[1745638377472,0.46463537,94841.0,94840.0,0.21235115]
[1745638383271,0.25386587,94841.0,94840.0,0.21235115]
[1745638383471,0.22066587,94841.0,94840.0,0.21235115]
[1745638383871,0.22066587,94841.0,94840.0,0.27635115]
[1745638384274,0.05266587,94841.0,94840.0,0.27635115]
[1745638385182,0.22066587,94841.0,94840.0,0.27635115]
[1745638386179,0.05266587,94841.0,94840.0,0.27635115]
[1745638390275,0.02116587,94841.0,94840.0,0.27635115]
[1745638390479,0.02116587,94841.0,94840.0,0.38179115]
[1745638398184,0.02116587,94841.0,94840.0,0.27635115]
[1745638401187,0.05176587,94841.0,94840.0,0.27635115]
[1745638403279,0.21976587,94841.0,94840.0,0.27635115]
[1745638404986,0.21976587,94841.0,94840.0,0.24565115]
[1745638405581,0.21976587,94841.0,94840.0,0.27745115]
[1745638407185,0.21976587,94841.0,94840.0,0.21235115]
[1745638433096,0.05176587,94841.0,94840.0,0.27665115]
[1745638440100,0.21976587,94841.0,94840.0,0.27665115]
[1745638441205,0.21976587,94841.0,94840.0,0.24505115]
[1745638444917,0.21976587,94841.0,94840.0,0.21235115]
[1745638452911,0.3608,94871.0,94856.0,0.2107362]
[1745638453111,0.06772,94864.0,94860.0,0.0526815]
[1745638453314,0.06772,94864.0,94862.0,0.2107229]
[1745638454225,0.06772,94864.0,94862.0,0.3787229]
[1745638454807,0.37962216,94863.0,94862.0,0.3787229]
[1745638456016,0.41262216,94863.0,94862.0,0.3787229]
[1745638456225,0.41262216,94863.0,94862.0,0.4087229]
[1745638458108,0.41262216,94863.0,94862.0,0.3787229]
[1745638461318,0.05182216,94863.0,94862.0,0.3787229]
[1745638464320,0.26254286,94863.0,94862.0,0.3787229]
[1745638465219,0.26254286,94863.0,94862.0,0.2107229]
[1745638467025,0.29324286,94863.0,94862.0,0.2107229]
[1745638469920,0.08252216,94863.0,94862.0,0.2107229]
[1745638470618,0.29324286,94863.0,94862.0,0.2107229]
[1745638472921,0.08252216,94863.0,94862.0,0.2107229]
[1745638481436,0.08252216,94863.0,94862.0,0.2429229]
[1745638482833,0.08252216,94863.0,94862.0,0.2752229]
[1745638492641,0.08252216,94863.0,94862.0,0.25676596]
[1745638493629,0.08252216,94863.0,94854.0,0.2107405]
[1745638493630,0.2107415,94855.0,94854.0,0.2107405]
[1745638493830,0.3608,94855.0,94854.0,0.2107407]
[1745638494228,0.4226,94855.0,94854.0,0.2107407]
[1745638494629,0.4226,94855.0,94854.0,0.2422407]
[1745638494829,0.4236,94855.0,94854.0,0.2452407]
[1745638495231,0.4246,94855.0,94854.0,0.2452407]
[1745638500352,0.002,94855.0,94854.0,0.2452407]
[1745638503241,0.17,94855.0,94854.0,0.2452407]
[1745638513254,0.002,94855.0,94854.0,0.2452407]
[1745638514243,0.17,94855.0,94854.0,0.2452407]
[1745638518960,0.17,94855.0,94854.0,0.2137407]
[1745638519557,0.17,94855.0,94854.0,0.18842766]
[1745638520353,0.17,94855.0,94854.0,0.21882766]
[1745638520656,0.17,94855.0,94854.0,0.18842766]
[1745638528557,0.17,94855.0,94854.0,0.22112766]
[1745638529564,0.17,94855.0,94854.0,0.19581471]
[1745638544768,0.17,94855.0,94854.0,0.17050158]
[1745638545170,0.17,94855.0,94854.0,0.15204409]
[1745638547372,0.3807384,94855.0,94854.0,0.15204409]
[1745638548271,0.3807384,94855.0,94854.0,0.11934409]
[1745638548471,0.4436384,94855.0,94854.0,0.11934409]
[1745638557867,0.2329,94855.0,94854.0,0.11934409]
[1745638559581,0.2329,94855.0,94854.0,0.15154409]
[1745638564381,0.4436384,94855.0,94854.0,0.15154409]
[1745638567083,0.2329,94855.0,94854.0,0.15154409]
[1745638570174,0.4436384,94855.0,94854.0,0.15154409]
[1745638573090,0.2329,94855.0,94854.0,0.15154409]
[1745638578388,0.4436384,94855.0,94854.0,0.15154409]
[1745638587086,0.4436384,94855.0,94854.0,0.11934409]
[1745638588890,0.8044384,94855.0,94854.0,0.11934409]
[1745638589090,0.7739384,94855.0,94854.0,0.11934409]
[1745638589492,0.7739384,94855.0,94854.0,0.18364409]
[1745638592882,0.7739384,94855.0,94854.0,0.11934409]
[1745638594497,0.7739384,94855.0,94854.0,0.003]
[1745638595785,0.7739384,94855.0,94854.0,0.2137407]
[1745638597193,0.4131384,94855.0,94854.0,0.2137407]
[1745638597492,0.7739384,94855.0,94854.0,0.2137407]
[1745638599800,0.7739384,94855.0,94854.0,0.003]
[1745638600098,0.2107873,94834.0,94833.0,0.0526955]
[1745638600300,0.2107873,94834.0,94833.0,0.0831955]
[1745638600494,0.2107873,94834.0,94833.0,0.3780683]
[1745638601089,0.4113873,94834.0,94833.0,0.3780683]
[1745638601290,0.4123873,94834.0,94833.0,0.3810683]
[1745638601606,0.4123873,94834.0,94833.0,0.2137763]
[1745638601792,0.4432873,94834.0,94833.0,0.2137763]
[1745638602804,0.4442873,94834.0,94833.0,0.2147763]
[1745638606000,0.45852245,94834.0,94833.0,0.2147763]
[1745638607085,0.42762245,94834.0,94833.0,0.2147763]
[1745638607994,0.21683515,94834.0,94833.0,0.2459763]
[1745638608191,0.21683515,94834.0,94833.0,0.2783763]
[1745638609389,0.42762025,94834.0,94833.0,0.2783763]
[1745638611291,0.17,94834.0,94833.0,0.6391763]
[1745638615518,0.17,94834.0,94833.0,0.2783763]
[1745638634329,0.2016,94834.0,94833.0,0.2783763]
[1745638636930,0.06772,94855.0,94842.0,0.2107673]
[1745638637224,0.0624,94853.0,94842.0,0.2107673]
[1745638637620,0.0624,94853.0,94852.0,0.2107451]
[1745638638026,0.07668012,94853.0,94852.0,0.2107451]
[1745638638222,0.27698012,94853.0,94852.0,0.2107451]
[1745638638620,0.48772302,94853.0,94852.0,0.2107451]
[1745638638827,0.48972302,94853.0,94852.0,0.2107451]
[1745638639021,0.49172302,94853.0,94852.0,0.2107451]
[1745638648937,0.85252302,94853.0,94852.0,0.2107451]
[1745638661344,0.49172302,94853.0,94852.0,0.2107451]
[1745638661541,0.85252302,94853.0,94852.0,0.2107451]
[1745638664644,1.02762302,94853.0,94852.0,0.2107451]
[1745638664842,0.85252302,94853.0,94852.0,0.2107451]
[1745638666744,0.0526885,94848.0,94820.0,0.49611435]
[1745638667044,0.2107673,94842.0,94841.0,0.3245553]
[1745638667840,0.2761673,94842.0,94841.0,0.3245553]
[1745638668042,0.2771673,94842.0,94841.0,0.3255553]
[1745638668248,0.4451673,94842.0,94841.0,0.3255553]
[1745638670242,0.4461673,94842.0,94841.0,0.3265553]
[1745638672446,0.2354,94842.0,94841.0,0.3265553]
[1745638674544,0.5962,94842.0,94841.0,0.3265553]
[1745638679051,0.8069673,94842.0,94841.0,0.3265553]
[1745638679349,0.5962,94842.0,94841.0,0.3265553]
[1745638685654,0.2354,94842.0,94841.0,0.3265553]
[1745638685847,0.5962,94842.0,94841.0,0.3265553]
[1745638691154,0.2354,94842.0,94841.0,0.3265553]
[1745638691345,0.5962,94842.0,94841.0,0.3265553]
[1745638697050,0.2354,94842.0,94841.0,0.3265553]
[1745638697356,0.5962,94842.0,94841.0,0.3265553]
[1745638699148,0.2354,94842.0,94841.0,0.3265553]
[1745638699461,0.5962,94842.0,94841.0,0.3265553]
[1745638701556,0.5962,94842.0,94841.0,0.2958553]
[1745638712365,0.2354,94842.0,94841.0,0.2958553]
[1745638712560,0.5962,94842.0,94841.0,0.2958553]
[1745638713358,0.2354,94842.0,94841.0,0.2958553]
[1745638713556,0.5962,94842.0,94841.0,0.2958553]
[1745638714064,0.17,94842.0,94841.0,0.2958553]
[1745638714367,0.3608,94852.0,94847.0,0.0526886]
[1745638714568,0.3608,94852.0,94851.0,0.2107473]
[1745638715461,0.3608,94852.0,94851.0,0.2732473]
[1745638715663,0.3618,94852.0,94851.0,0.2732473]
[1745638715966,0.3638,94852.0,94851.0,0.2732473]
[1745638717165,0.5318,94852.0,94851.0,0.2732473]
[1745638717867,0.5318,94852.0,94851.0,0.2742473]
[1745638718363,0.171,94852.0,94851.0,0.2742473]
[1745638722259,0.003,94852.0,94851.0,0.2742473]
[1745638723171,0.171,94852.0,94851.0,0.2742473]
[1745638728570,0.3817451,94852.0,94851.0,0.2742473]
[1745638729870,0.171,94852.0,94851.0,0.2742473]
[1745638731466,0.3817451,94852.0,94851.0,0.2742473]
[1745638731671,0.4148451,94852.0,94851.0,0.2742473]
[1745638733970,0.4148451,94852.0,94851.0,0.2117473]
[1745638735562,0.4148451,94852.0,94851.0,0.001]
[1745638740679,1.1364451,94852.0,94851.0,0.001]
[1745638742075,1.1364451,94852.0,94840.0,0.08155593]
[1745638742076,0.2107695,94841.0,94840.0,0.08155593]
[1745638742274,0.2107873,94833.0,94832.0,0.2107882]
[1745638742867,0.5715873,94833.0,94832.0,0.2107882]
[1745638743068,0.7395873,94833.0,94832.0,0.2107882]
[1745638743375,0.7405873,94833.0,94832.0,0.2127882]
[1745638744085,0.7415873,94833.0,94832.0,0.2137882]
[1745638745175,0.7717873,94833.0,94832.0,0.2137882]
[1745638752874,0.4109873,94833.0,94832.0,0.2137882]
[1745638753182,0.7717873,94833.0,94832.0,0.2137882]
[1745638756775,0.7717873,94833.0,94832.0,0.2454882]
[1745638760675,0.561,94833.0,94832.0,0.2454882]
[1745638761675,0.5923,94833.0,94832.0,0.2454882]
[1745638761978,0.8030873,94833.0,94832.0,0.2454882]
[1745638763284,0.5923,94833.0,94832.0,0.2454882]
[1745638778895,0.2315,94833.0,94832.0,0.2454882]
[1745638779089,0.5923,94833.0,94832.0,0.2454882]
[1745638781502,0.2315,94833.0,94832.0,0.2454882]
[1745638781693,0.5923,94833.0,94832.0,0.2454882]
[1745638795497,0.6234,94833.0,94832.0,0.2454882]
[1745638799292,0.2626,94833.0,94832.0,0.2454882]
[1745638799497,0.6234,94833.0,94832.0,0.2454882]
[1745638800103,0.2626,94833.0,94832.0,0.2454882]
[1745638800307,0.6234,94833.0,94832.0,0.2454882]
[1745638804210,0.2626,94833.0,94832.0,0.2454882]
[1745638804408,0.6234,94833.0,94832.0,0.2454882]
[1745638805403,0.2626,94833.0,94832.0,0.2454882]
[1745638805603,0.6234,94833.0,94832.0,0.2454882]
[1745638814416,0.2626,94833.0,94832.0,0.2454882]
[1745638814616,0.6234,94833.0,94832.0,0.2454882]
[1745638815610,0.2626,94833.0,94832.0,0.2454882]
[1745638815908,0.6234,94833.0,94832.0,0.2454882]
[1745638816310,0.6234,94833.0,94832.0,0.2137882]
[1745638818006,0.8341873,94833.0,94832.0,0.2137882]
[1745638820215,0.6234,94833.0,94832.0,0.2137882]
[1745638822416,0.6234,94833.0,94832.0,0.2456882]
[1745638826309,0.2626,94833.0,94832.0,0.2456882]
[1745638826507,0.6234,94833.0,94832.0,0.2456882]
[1745638828417,0.2626,94833.0,94832.0,0.2456882]
[1745638828624,0.6234,94833.0,94832.0,0.2456882]
[1745638832429,0.5923,94833.0,94832.0,0.2456882]
[1745638833421,0.2315,94833.0,94832.0,0.2456882]
[1745638833622,0.5923,94833.0,94832.0,0.2456882]
[1745638842027,0.2013,94833.0,94832.0,0.2456882]
[1745638842225,0.2013,94833.0,94832.0,0.2765882]
[1745638850240,0.3764,94833.0,94832.0,0.2765882]
[1745638850540,0.2013,94833.0,94832.0,0.2765882]
[1745638875859,0.2323,94833.0,94832.0,0.2765882]
[1745638890555,0.2323,94833.0,94832.0,0.2137882]
[1745638898075,0.2013,94833.0,94832.0,0.2137882]
[1745638898287,0.1415637,94833.0,94832.0,0.3500362]
[1745638898577,0.4163,94853.0,94852.0,0.2107451]
[1745638899374,0.3608,94856.0,94851.0,0.0622]
[1745638899375,0.3608,94856.0,94853.0,0.2107429]
[1745638899571,0.3608,94856.0,94855.0,0.2107384]
[1745638900163,0.5288,94856.0,94855.0,0.2107384]
[1745638900370,0.5288,94856.0,94855.0,0.2739384]
[1745638900769,0.18247481,94856.0,94855.0,0.2749384]
[1745638901283,0.01447481,94856.0,94855.0,0.2749384]
[1745638901777,0.01547481,94856.0,94855.0,0.2759384]
[1745638902265,0.01247481,94856.0,94855.0,0.2749384]
[1745638902464,0.01347481,94856.0,94855.0,0.2749384]
[1745638902665,0.01447481,94856.0,94855.0,0.2769384]
[1745638902979,0.01347481,94856.0,94855.0,0.2769384]
[1745638904175,0.01347481,94856.0,94855.0,0.2749384]
[1745638904176,0.01247481,94856.0,94855.0,0.2749384]
[1745638904365,0.01347481,94856.0,94855.0,0.2759384]
[1745638913473,0.22421101,94856.0,94855.0,0.2127384]
[1745638913672,0.22421101,94856.0,94855.0,0.002]
[1745638913969,0.28461101,94856.0,94855.0,0.002]
[1745638914270,0.45261101,94856.0,94855.0,0.2127384]
[1745638915978,0.81341101,94856.0,94855.0,0.2127384]
[1745638925177,0.81341101,94856.0,94855.0,0.002]
[1745638925485,0.81341101,94856.0,94846.0,0.2107565]
[1745638925486,0.2634501,94847.0,94846.0,0.2107565]
[1745638925688,0.6242501,94847.0,94846.0,0.2107565]
[1745638926189,0.7922501,94847.0,94846.0,0.2107565]
[1745638926390,0.8886501,94847.0,94846.0,0.2107565]
[1745638926777,0.8906501,94847.0,94846.0,0.2147565]
[1745638926982,0.8379607,94847.0,94846.0,0.2147565]
[1745638928090,0.8369607,94847.0,94846.0,0.2117565]
[1745638928287,0.8379607,94847.0,94846.0,0.2127565]
[1745638934988,0.4771607,94847.0,94846.0,0.2127565]
[1745638935185,0.8379607,94847.0,94846.0,0.2127565]
[1745638935981,0.4771607,94847.0,94846.0,0.2127565]
[1745638936184,0.8379607,94847.0,94846.0,0.2127565]
[1745638936989,0.4771607,94847.0,94846.0,0.2127565]
[1745638937192,0.8379607,94847.0,94846.0,0.2127565]
[1745638937390,0.6272,94847.0,94846.0,0.2127565]
[1745638938685,0.8379773,94847.0,94846.0,0.2127565]
[1745638939592,0.8379773,94847.0,94846.0,0.2127795]
[1745638939790,0.8379773,94847.0,94846.0,0.002]
[1745638939989,0.8379773,94847.0,94846.0,0.2127795]
[1745638942790,0.8379773,94847.0,94846.0,0.002]
[1745638946084,0.4771773,94847.0,94846.0,0.002]
[1745638946300,1.1987773,94847.0,94846.0,0.002]
[1745638946897,1.1987773,94847.0,94846.0,0.2127795]
[1745638947092,1.1987773,94847.0,94846.0,0.002]
[1745638948294,1.1987773,94847.0,94846.0,0.2127795]
[1745638951198,1.1987773,94847.0,94846.0,0.2427795]
[1745638951586,1.1987773,94847.0,94846.0,0.2738795]
[1745638956586,0.4771773,94847.0,94846.0,0.2738795]
[1745638956786,0.8379773,94847.0,94846.0,0.2738795]
[1745638961600,1.1987773,94847.0,94846.0,0.2738795]
[1745638966997,1.1671773,94847.0,94846.0,0.2738795]
[1745638967899,0.4455773,94847.0,94846.0,0.2738795]
[1745638968098,1.1671773,94847.0,94846.0,0.2738795]
[1745638969495,0.4455773,94847.0,94846.0,0.2738795]
[1745638969695,1.1671773,94847.0,94846.0,0.2738795]
[1745638976704,0.2107906,94841.0,94840.0,0.2634833]
[1745638977095,0.3787906,94841.0,94840.0,0.2634833]
[1745638977497,0.4412906,94841.0,94840.0,0.2634833]
[1745638977810,0.4412906,94841.0,94840.0,0.2654833]
[1745638978008,0.4422906,94841.0,94840.0,0.2654833]
[1745638978500,0.4432906,94841.0,94840.0,0.2654833]
[1745638978901,0.4432906,94841.0,94840.0,0.2644833]
[1745638981010,0.2325,94841.0,94840.0,0.2644833]
[1745638981207,0.2018,94841.0,94840.0,0.2944833]
[1745638983205,0.5626,94841.0,94840.0,0.2944833]
[1745638984612,0.2018,94841.0,94840.0,0.2944833]
[1745638984803,0.5626,94841.0,94840.0,0.2944833]
[1745638993820,0.7733906,94841.0,94840.0,0.2944833]
[1745638995103,0.7733906,94841.0,94840.0,0.2644833]
[1745639001210,0.4125906,94841.0,94840.0,0.2644833]
[1745639001406,0.7733906,94841.0,94840.0,0.2644833]
[1745639002711,1.1341906,94841.0,94840.0,0.2644833]
[1745639008509,0.4125906,94841.0,94840.0,0.2644833]
[1745639008706,1.1341906,94841.0,94840.0,0.2644833]
[1745639009311,1.3092906,94841.0,94840.0,0.2644833]
[1745639009505,1.1341906,94841.0,94840.0,0.2644833]
[1745639012513,0.4125906,94841.0,94840.0,0.2644833]
[1745639012915,1.1341906,94841.0,94840.0,0.2644833]
[1745639015121,1.1341906,94841.0,94840.0,0.2959833]
[1745639016019,0.7733906,94841.0,94840.0,0.2959833]
[1745639016619,0.5626,94841.0,94840.0,0.2959833]
[1745639017015,0.5308,94841.0,94840.0,0.2959833]
[1745639017319,0.3628,94841.0,94840.0,0.2959833]
[1745639018121,0.5308,94841.0,94840.0,0.2959833]
[1745639020309,0.3628,94841.0,94840.0,0.2959833]
[1745639021215,0.5308,94841.0,94840.0,0.2959833]
[1745639023021,0.7415906,94841.0,94840.0,0.2959833]
[1745639023811,0.3807906,94841.0,94840.0,0.2959833]
[1745639024015,0.7415906,94841.0,94840.0,0.2959833]
[1745639027218,0.7723906,94841.0,94840.0,0.2959833]
[1745639030319,0.7723906,94841.0,94840.0,0.0325]
[1745639030718,0.8034906,94841.0,94840.0,0.001]
[1745639033629,0.2107929,94840.0,94839.0,0.2107938]
[1745639033922,0.2438929,94840.0,94839.0,0.2107938]
[1745639034123,0.4428929,94840.0,94839.0,0.2107938]
[1745639034717,0.4438929,94840.0,94839.0,0.2107938]
[1745639034918,0.4448929,94840.0,94839.0,0.2107938]
[1745639039919,0.4448929,94840.0,94839.0,0.2408938]
[1745639041027,0.4448929,94840.0,94839.0,0.2107938]
[1745639043125,1.1664929,94840.0,94839.0,0.2107938]
[1745639044922,0.4448929,94840.0,94839.0,0.2107938]
[1745639045123,1.1664929,94840.0,94839.0,0.2107938]
[1745639054542,0.4448929,94840.0,94839.0,0.2107938]
[1745639054731,0.8056929,94840.0,94839.0,0.2107938]
[1745639056441,0.8056929,94840.0,94839.0,0.2417938]
[1745639057541,0.4448929,94840.0,94839.0,0.2417938]
[1745639057741,1.1664929,94840.0,94839.0,0.2417938]
[1745639060554,0.4448929,94840.0,94839.0,0.2417938]
[1745639060851,1.1664929,94840.0,94839.0,0.2417938]
[1745639062556,1.1664929,94840.0,94839.0,0.19800985]
[1745639076667,0.4448929,94840.0,94839.0,0.19800985]
[1745639076876,1.1664929,94840.0,94839.0,0.19800985]
[1745639092974,0.4448929,94840.0,94839.0,0.19800985]
[1745639093377,1.1664929,94840.0,94839.0,0.19800985]
[1745639097473,1.1333929,94840.0,94839.0,0.19800985]
[1745639097672,0.8916,94840.0,94839.0,0.30344985]
[1745639098078,0.3628,94840.0,94839.0,0.30344985]
[1745639099783,0.6056929,94840.0,94839.0,0.19800985]
[1745639100081,0.7736929,94840.0,94839.0,0.19800985]
[1745639101382,0.5629,94840.0,94839.0,0.19800985]
[1745639106575,0.0526997,94838.0,94834.0,0.0311]
[1745639106879,0.3256993,94837.0,94836.0,0.033]
[1745639107287,0.3256993,94837.0,94836.0,0.2438018]
[1745639108179,0.8544993,94837.0,94836.0,0.2438018]
[1745639108588,0.8027995,94837.0,94836.0,0.2448018]
[1745639109485,0.5615,94837.0,94836.0,0.2448018]
[1745639109877,0.7722995,94837.0,94836.0,0.2448018]
[1745639111585,0.4114995,94837.0,94836.0,0.2448018]
[1745639111787,0.7722995,94837.0,94836.0,0.2448018]
[1745639112181,0.4114995,94837.0,94836.0,0.2448018]
[1745639112481,0.7722995,94837.0,94836.0,0.2448018]
[1745639119091,0.5615,94837.0,94836.0,0.2448018]
[1745639121489,0.2007,94837.0,94836.0,0.2448018]
[1745639121695,0.5615,94837.0,94836.0,0.2448018]
[1745639123790,0.2007,94837.0,94836.0,0.2448018]
[1745639124091,0.5615,94837.0,94836.0,0.2448018]
[1745639124592,0.5615,94837.0,94836.0,0.3502458]
[1745639124783,0.5308,94837.0,94836.0,0.3502458]
[1745639124984,0.0325,94843.0,94842.0,0.2107884]
[1745639125183,0.3608,94845.0,94844.0,0.210784]
[1745639125987,0.3608,94845.0,94844.0,0.272384]
[1745639127191,0.3618,94845.0,94844.0,0.272384]
[1745639128393,0.3628,94845.0,94844.0,0.273384]
[1745639129285,0.3628,94845.0,94844.0,0.274384]
[1745639130087,0.5308,94845.0,94844.0,0.274384]
[1745639132090,0.5308,94845.0,94844.0,0.37982]
[1745639132292,0.37227481,94856.0,94855.0,0.2107595]
[1745639133195,0.37227481,94856.0,94855.0,0.2734595]
[1745639133398,0.37527481,94856.0,94855.0,0.2734595]
[1745639134203,0.18247481,94856.0,94855.0,0.6342595]
[1745639134495,0.18347481,94856.0,94855.0,0.6342595]
[1745639135094,0.18247481,94856.0,94855.0,0.6352595]
[1745639135291,0.18147481,94856.0,94855.0,0.6362595]
[1745639136096,0.01347481,94856.0,94855.0,0.6372595]